fUST/lending_fUST_20260429
["ID","MTS","AMOUNT","RATE_DAILY","PERIOD"]
[421301908,1777398643168,-500.0,0.00018,2]
[421301909,1777398643177,-294.386052,0.00018,2]
[421301910,1777398643186,-1000.0,0.00018,2]
[421301911,1777398643195,-276.140471,0.00018,2]
[421301912,1777398643204,-276.140471,0.00018,2]
[421301913,1777398643212,-276.140471,0.00018,2]
[421301914,1777398643221,-276.140471,0.00018,2]
[421301915,1777398643230,-1709.840136,0.00018,2]
[421301916,1777398643239,-1709.840136,0.00018,2]
[421301917,1777398643248,-1709.840136,0.00018,2]
[421301918,1777398643257,-1709.840136,0.00018,2]
[421301919,1777398643266,-336.061893,0.00018,2]
[421301920,1777398643275,-336.061893,0.00018,2]
[421301921,1777398643284,-336.061893,0.00018,2]
[421301922,1777398643292,-336.061893,0.00018,2]
[421301923,1777398643301,-151.0,0.00018,2]
[421301924,1777398643311,-151.0,0.00018,2]
[421301925,1777398643320,-151.0,0.00018,2]
[421301926,1777398643330,-151.0,0.00018,2]
[421301927,1777398643339,-151.0,0.00018,2]
[421301928,1777398643348,-268.587094,0.00018,2]
[421301929,1777398643357,-607.0,0.00018028,2]
[421301930,1777398643367,-10000.0,0.00018032,2]
[421301931,1777398643376,-392.838012,0.00018032,2]
[421301932,1777398643385,-392.838012,0.00018032,2]
[421301933,1777398643394,-392.838012,0.00018032,2]
[421301934,1777398643404,-392.838012,0.00018032,2]
[421301935,1777398643413,-673472.5576796,0.00018032,2]
[421301936,1777398643427,-12913.79060295,0.00018032,2]
[421301937,1777398643439,-2443.83798997,0.00018032,2]
[421301938,1777398643451,-1257.3043894,0.00018032,2]
[421301939,1777398643603,-151.0,0.00016438,2]
[421301940,1777398643613,-167.469002,0.00016438,2]
[421301941,1777398643622,-199.526998,0.00017522,2]
[421301942,1777398643632,-167.469002,0.00017522,2]
[421301943,1777398643641,-50195.58319872,0.00018032,2]
[421301952,1777398646909,-442.0,0.00014779,2]
[421301953,1777398646919,-167.469002,0.00016438,2]
[421301954,1777398646928,-167.469002,0.00016438,2]
[421301955,1777398646938,-167.469002,0.00017522,2]
[421301956,1777398646947,-167.469002,0.00017522,2]
[421301957,1777398646957,-1406.105916,0.00017671,2]
[421301958,1777398646966,-442.0,0.00017779,2]
[421301959,1777398646976,-186.13028001,0.00018032,2]
[421301960,1777398646985,-468.0,0.0001805,2]
[421301961,1777398646994,-859.0,0.0001805,2]
[421301962,1777398647003,-640.0,0.0001805,2]
[421301963,1777398647012,-223.0,0.0001805,2]
[421301964,1777398647021,-156.0,0.0001805,2]
[421301965,1777398647031,-3998.0,0.0001805,2]
[421301966,1777398647040,-221.10218597,0.00018074,120]
[421301967,1777398647050,-436.7,0.00018082,2]
[421301968,1777398647059,-300.0,0.000181,2]
[421301969,1777398647070,-468.84863908,0.000181,2]
[421301970,1777398647079,-260.0,0.00018155,2]
[421301971,1777398647088,-281.62388671,0.000182,2]
[421301972,1777398647098,-299.78987353,0.000182,2]
[421301973,1777398647107,-419.92363219,0.000182,2]
[421301974,1777398647116,-198.80859224,0.000182,2]
[421301975,1777398647126,-423.51207353,0.000182,2]
[421301976,1777398647135,-1305.86084457,0.000182,2]
[421301977,1777398647145,-680.36491175,0.000182,2]
[421301978,1777398647155,-344.36117449,0.000182,2]
[421301979,1777398647169,-151.0,0.00018229,2]
[421301980,1777398647179,-167.469002,0.00018229,2]
[421301981,1777398647189,-167.469002,0.00018229,2]
[421301982,1777398647199,-167.469002,0.00018229,2]
[421301983,1777398647209,-3292.0,0.00018231,2]
[421301984,1777398647218,-864.0,0.0001824,2]
[421301985,1777398647228,-153.5341059,0.00018275,120]
[421301986,1777398647238,-468.84863908,0.000183,2]
[421301987,1777398647247,-151.0,0.000183,2]
[421301988,1777398647257,-500.0,0.0001832,2]
[421301989,1777398647266,-162.71484958,0.0001833,120]
[421301990,1777398647276,-436.7,0.00018356,2]
[421301991,1777398647285,-2485.46955798,0.00018399,2]
[421301992,1777398647655,-184.48342802,0.00018399,2]
[421301993,1777398647665,-468.84863908,0.000184,2]
[421301994,1777398647675,-281.62388671,0.000184,2]
[421301995,1777398647684,-299.78987353,0.000184,2]
[421301996,1777398647694,-419.92363219,0.000184,2]
[421301997,1777398647704,-198.80859224,0.000184,2]
[421301998,1777398647714,-423.51207353,0.000184,2]
[421301999,1777398647723,-1305.86084457,0.000184,2]
[421302000,1777398647733,-680.36491175,0.000184,2]
[421302001,1777398647742,-344.36117449,0.000184,2]
[421302002,1777398647752,-151.0,0.000184,2]
[421302003,1777398647762,-178.258153,0.000184,2]
[421302004,1777398647772,-178.258153,0.000184,2]
[421302005,1777398647782,-178.258153,0.000184,2]
[421302006,1777398647792,-178.258153,0.000184,2]
[421302007,1777398647802,-193.659681,0.00018419,7]
[421302008,1777398647812,-313.649766,0.00018419,2]
[421302009,1777398647821,-158.2569885,0.00018432,2]
[421302010,1777398647831,-1002.99845075,0.00018456,2]
[421302011,1777398647840,-194.94031722,0.00018464,120]
[421302012,1777398647850,-281.62388671,0.000185,2]
[421302013,1777398647859,-299.78987353,0.000185,2]
[421302014,1777398647868,-419.92363219,0.000185,2]
[421302015,1777398647878,-423.51207353,0.000185,2]
[421302016,1777398647887,-1305.86084457,0.000185,2]
[421302017,1777398647897,-680.36491175,0.000185,2]
[421302018,1777398647907,-344.36117449,0.000185,2]
[421302019,1777398647916,-4888.47504894,0.000185,2]
[421302020,1777398647926,-308.68350414,0.00018523,120]
[421302021,1777398647935,-500.0,0.00018573,2]
[421302022,1777398647945,-500.0,0.00018573,2]
[421302023,1777398647954,-500.0,0.00018573,2]
[421302024,1777398647964,-500.0,0.00018573,2]
[421302025,1777398647976,-500.0,0.00018573,2]
[421302026,1777398647985,-500.0,0.00018573,2]
[421302027,1777398647997,-522.7248757,0.00018573,2]
[421302028,1777398648008,-500.0,0.00018573,2]
[421302029,1777398648018,-500.0,0.00018573,2]
[421302030,1777398648028,-500.0,0.00018573,2]
[421302031,1777398648038,-275.0,0.0001858,2]
[421302032,1777398648049,-10000.0,0.000186,30]
[421302033,1777398648060,-2147.1913272,0.000186,30]
[421302037,1777399247100,683.04836346,7.6e-05,2]
[421302038,1777399259583,-116.95163654,8e-05,7]
[421302039,1777399259602,-83.04836346,8e-05,7]
[421302040,1777399259611,-116.95163654,8.5e-05,7]
[421302041,1777399288908,-335.0,8.5e-05,7]
[421302042,1777399288920,-13.04836346,8.5e-05,7]
[421302043,1777399288930,-335.0,9.9e-05,2]
[421305374,1777399832324,-5000.0,9.412e-05,2]
[421305376,1777399832333,-5000.0,9.507e-05,2]
[421305378,1777399832342,-553.0,9.507e-05,2]
[421305380,1777399832354,-300.0,9.603e-05,2]
[421305382,1777399832364,-300.0,9.603e-05,2]
[421305384,1777399832373,-1200.0,9.603e-05,2]
[421305386,1777399832382,-547.57346573,9.801e-05,2]
[421305388,1777399832391,-2136.52750343,0.0001,2]
[421305390,1777399832400,-4983.60662754,0.0001,2]
[421305392,1777399832408,-300.0,0.00010199,2]
[421305394,1777399832418,-300.0,0.00010199,2]
[421305396,1777399832427,-300.0,0.00010199,2]
[421305398,1777399832436,-300.0,0.00010199,2]
[421305400,1777399832445,-300.0,0.00010199,2]
[421305402,1777399832454,-300.0,0.00010199,2]
[421305404,1777399832463,-300.0,0.00010199,2]
[421305406,1777399832472,-300.0,0.00010199,2]
[421305408,1777399832481,-300.0,0.00010199,2]
[421305410,1777399832490,-300.0,0.00010199,2]
[421305412,1777399832499,-300.0,0.00010199,2]
[421305414,1777399832508,-300.0,0.00010199,2]
[421305416,1777399832518,-300.0,0.00010199,2]
[421305418,1777399832527,-300.0,0.00010199,2]
[421305420,1777399832537,-300.0,0.00010199,2]
[421305422,1777399832547,-384.0,0.00010563,2]
[421305424,1777399832557,-330.0,0.00010563,2]
[421305425,1777399832567,-646.13668957,0.000118,2]
[421305427,1777399832576,-250.0,0.00012562,2]
[421305429,1777399832585,-1000.0,0.00013699,2]
[421305431,1777399832594,-272.0,0.000137,2]
[421305433,1777399832604,-744.6999134,0.00013801,2]
[421305435,1777399832613,-442.0,0.00014775,2]
[421305437,1777399832622,-402.02,0.00014775,2]
[421305439,1777399832632,-185.0,0.00014775,2]
[421305441,1777399832642,-846.1,0.0001501,2]
[421305443,1777399832651,-500.0,0.00015011,2]
[421305445,1777399832660,-742.58995946,0.00015032,2]
[421305447,1777399832670,-653.5224057,0.00015131,2]
[421305449,1777399832679,-257.40134527,0.00015131,2]
[421305451,1777399832688,-653.5224057,0.00015131,2]
[421305453,1777399832697,-653.5224057,0.00015131,2]
[421305455,1777399832706,-653.5224057,0.00015131,2]
[421305457,1777399832716,-653.5224057,0.00015131,2]
[421305460,1777399832725,-653.5224057,0.00015131,2]
[421305462,1777399832734,-653.5224057,0.00015131,2]
[421305464,1777399832744,-653.5224057,0.00015131,2]
[421305466,1777399832754,-653.5224057,0.00015131,2]
[421305467,1777399832763,-500.0,0.00015131,2]
[421305469,1777399832773,-500.0,0.00015131,2]
[421305471,1777399832783,-653.5224057,0.00015131,2]
[421305473,1777399832792,-500.0,0.00015131,2]
[421305475,1777399832801,-297.68259006,0.00015131,2]
[421305477,1777399832810,-500.0,0.00015131,2]
[421305479,1777399832820,-262.63120772,0.00015131,2]
[421305481,1777399832830,-500.0,0.00015131,2]
[421305483,1777399832839,-500.0,0.00015131,2]
[421305485,1777399832848,-500.0,0.00015131,2]
[421305487,1777399832857,-653.5224057,0.00015131,2]
[421305489,1777399832866,-500.0,0.00015131,2]
[421305491,1777399832875,-500.0,0.00015131,2]
[421305493,1777399832885,-500.0,0.00015131,2]
[421305495,1777399832894,-500.0,0.00015131,2]
[421305497,1777399832903,-500.0,0.00015131,2]
[421305499,1777399832913,-500.0,0.00015131,2]
[421305501,1777399832922,-500.0,0.00015131,2]
[421305503,1777399832932,-653.5224057,0.00015131,2]
[421305505,1777399832941,-500.0,0.00015131,2]
[421305507,1777399832950,-199.12626454,0.00015131,2]
[421305509,1777399832960,-500.0,0.00015131,2]
[421305511,1777399832971,-500.0,0.00015131,2]
[421305513,1777399832979,-500.0,0.00015131,2]
[421305515,1777399832988,-653.5224057,0.00015131,2]
[421305517,1777399832997,-653.5224057,0.00015131,2]
[421305519,1777399833005,-1485.30927598,0.00015131,2]
[421305521,1777399833014,-1485.30927598,0.00015131,2]
[421305522,1777399833024,-1485.30927598,0.00015131,2]
[421305524,1777399833033,-1485.30927598,0.00015131,2]
[421305526,1777399833042,-1485.30927598,0.00015131,2]
[421305528,1777399833053,-1485.30927598,0.00015131,2]
[421305530,1777399833062,-1485.30927598,0.00015131,2]
[421305532,1777399833071,-1485.30927598,0.00015131,2]
[421305534,1777399833080,-1485.30927598,0.00015131,2]
[421305536,1777399833089,-1485.30927598,0.00015131,2]
[421305538,1777399833099,-337.2526002,0.00015131,2]
[421305541,1777399833108,-78870.4817735,0.00015132,2]
[421305590,1777399838625,-555.70110208,9.555e-05,2]
[421305592,1777399838635,-655.72730045,0.00011555,2]
[421305594,1777399838645,-755.75349882,0.00013555,2]
[421305596,1777399838655,-810.85,0.00013698,2]
[421305597,1777399838664,-810.85,0.00015131,2]
[421305599,1777399838673,-810.85,0.00015131,2]
[421305601,1777399838683,-810.85,0.00015131,2]
[421305603,1777399838692,-810.85,0.00015131,2]
[421305605,1777399838702,-810.85,0.00015131,2]
[421305608,1777399838712,-810.85,0.00015131,2]
[421305610,1777399838722,-31800.07893861,0.00015132,2]
[421305612,1777399838731,-600.0,0.0001517,2]
[421305613,1777399838739,-293.985,0.00015231,2]
[421305615,1777399838749,-810.85,0.00015231,2]
[421305617,1777399838758,-810.85,0.00015231,2]
[421305619,1777399838767,-810.85,0.00015232,2]
[421305621,1777399838777,-4199.12164587,0.00015233,2]
[421305623,1777399838787,-1561.0,0.0001524,2]
[421305625,1777399838797,-500.0,0.00015331,2]
[421305627,1777399838806,-500.0,0.00015332,2]
[421305629,1777399838816,-500.0,0.00015332,2]
[421305632,1777399838825,-500.0,0.00015332,2]
[421305634,1777399838835,-500.0,0.00015332,2]
[421305636,1777399838845,-500.0,0.00015332,2]
[421305638,1777399838854,-500.0,0.00015332,2]
[421305640,1777399838863,-500.0,0.00015431,2]
[421305642,1777399838873,-500.0,0.00015432,2]
[421305644,1777399838882,-500.0,0.00015432,2]
[421305646,1777399838891,-500.0,0.00015433,2]
[421305647,1777399838900,-500.0,0.00015433,2]
[421305649,1777399838910,-500.0,0.00015433,2]
[421305651,1777399838919,-500.0,0.00015433,2]
[421305653,1777399838928,-500.0,0.00015434,2]
[421305655,1777399838937,-500.0,0.00015434,2]
[421305657,1777399838946,-500.0,0.00015434,2]
[421305659,1777399838956,-500.86247662,0.00015434,2]
[421305661,1777399838964,-1561.0,0.00015514,2]
[421305663,1777399838973,-500.0,0.00015536,2]
[421305665,1777399838982,-855.7796972,0.00015555,2]
[421305667,1777399838991,-160.0,0.00015603,2]
[421305669,1777399839000,-160.0,0.00015603,2]
[421305671,1777399839010,-1561.0,0.00015788,2]
[421305673,1777399839019,-742.58995939,0.00015922,2]
[421305675,1777399839028,-810.85,0.00015999,2]
[421305677,1777399839038,-3000.0,0.00016,2]
[421305679,1777399839047,-151.0,0.00016,2]
[421305681,1777399839056,-3000.0,0.0001601,2]
[421305683,1777399839065,-3000.0,0.0001602,2]
[421305685,1777399839075,-3000.0,0.0001603,2]
[421305687,1777399839084,-3000.0,0.0001604,2]
[421305689,1777399839093,-3000.0,0.0001605,2]
[421305691,1777399839102,-3000.0,0.0001606,2]
[421305693,1777399839113,-810.85,0.00016061,2]
[421305695,1777399839122,-1561.0,0.00016062,2]
[421305697,1777399839131,-3000.0,0.0001607,2]
[421305699,1777399839141,-3000.0,0.0001608,2]
[421305702,1777399839151,-3000.0,0.0001609,2]
[421305704,1777399839160,-3000.0,0.000161,2]
[421305705,1777399839169,-3000.0,0.0001611,2]
[421305708,1777399839179,-3000.0,0.0001612,2]
[421305709,1777399839188,-810.85,0.00016129,2]
[421305711,1777399839197,-3000.0,0.0001613,2]
[421305713,1777399839206,-3000.0,0.0001614,2]
[421305715,1777399839215,-3000.0,0.0001615,2]
[421305717,1777399839225,-4661.784458,0.0001616,2]
[421305719,1777399839234,-151.0,0.000163,2]
[421305721,1777399839243,-1561.0,0.00016336,2]
[421305723,1777399839252,-151.0,0.000166,2]
[421305725,1777399839262,-1561.0,0.0001661,2]
[421305727,1777399839270,-720.0,0.00016687,2]
[421305729,1777399839279,-151.0,0.00016712,2]
[421305731,1777399839288,-742.58995939,0.00016811,2]
[421305733,1777399839297,-890.0,0.00016884,2]
[421305735,1777399839306,-151.0,0.000169,2]
[421305737,1777399839315,-151.0,0.00016986,2]
[421305739,1777399839325,-1144.42860325,0.00017007,2]
[421305741,1777399839334,-281.0,0.00017068,3]
[421305743,1777399839343,-151.0,0.000171,2]
[421305745,1777399839352,-151.0,0.0001726,2]
[421305747,1777399839361,-151.0,0.000174,2]
[421305749,1777399839370,-151.0,0.00017534,2]
[421305751,1777399839379,-955.80589557,0.00017555,2]
[421305753,1777399839388,-151.0,0.000177,2]
[421305756,1777399839407,-742.58995939,0.00017701,2]
[421305758,1777399839417,-810.85,0.00017774,2]
[421305760,1777399839426,-442.0,0.00017775,2]
[421305761,1777399839435,-185.0,0.00017775,2]
[421305763,1777399839445,-151.0,0.00017808,2]
[421305764,1777399839454,-151.0,0.00017891,2]
[421305765,1777399839464,-457.093439,0.00017891,2]
[421305766,1777399839473,-234.42431953,0.000179,2]
[421305767,1777399839482,-933.63809712,0.00018,2]
[421305768,1777399839492,-172.18058725,0.00018,2]
[421305769,1777399839502,-281.62388673,0.00018,2]
[421305770,1777399839511,-299.78987354,0.00018,2]
[421305771,1777399839520,-209.96181609,0.00018,2]
[421305772,1777399839530,-261.17216892,0.00018,2]
[421305773,1777399839539,-211.75603676,0.00018,2]
[421305774,1777399839548,-170.09122794,0.00018,2]
[421305775,1777399839558,-151.0,0.00018,2]
[421305776,1777399839567,-500.0,0.00018032,2]
[421305777,1777399839576,-301001.34007167,0.00018032,2]
[421305778,1777399839586,-289.0,0.0001805,2]
[421305779,1777399839595,-151.0,0.00018082,2]
[421305780,1777399839605,-234.42431953,0.000181,2]
[421305781,1777399839614,-170.0,0.00018164,3]
[421305782,1777399839623,-933.63809712,0.000182,2]
[421305783,1777399839633,-172.18058725,0.000182,2]
[421305784,1777399839642,-209.96181609,0.000182,2]
[421305785,1777399839651,-261.17216892,0.000182,2]
[421305786,1777399839660,-211.75603676,0.000182,2]
[421305787,1777399839670,-170.09122794,0.000182,2]
[421305788,1777399839679,-151.0,0.000182,2]
[421305789,1777399839689,-937.403944,0.00018208,2]
[421305790,1777399839698,-160.0,0.00018228,2]
[421305791,1777399839707,-365.715764,0.00018228,2]
[421305792,1777399839716,-571.431528,0.00018228,2]
[421305793,1777399839726,-253.236284,0.00018228,2]
[421305794,1777399839735,-151.0,0.00018356,2]
[421305795,1777399839744,-864.0,0.00018356,2]
[421305796,1777399839753,-933.63809712,0.000184,2]
[421305797,1777399839762,-261.17216892,0.000184,2]
[421305798,1777399839772,-170.09122794,0.000184,2]
[421305799,1777399839780,-810.85,0.00018499,2]
[421305800,1777399839790,-933.63809712,0.000185,2]
[421305801,1777399839799,-261.17216892,0.000185,2]
[421305802,1777399839807,-170.09122794,0.000185,2]
[421305803,1777399839817,-151.0,0.000185,2]
[421305804,1777399839826,-1000.0,0.000185,2]
[421305805,1777399839835,-392.67,0.000185,2]
[421305806,1777399839844,-4399.6275441,0.000185,2]
[421305807,1777399839853,-500.0,0.00018573,2]
[421305808,1777399839862,-166.1,0.00018575,2]
[421305809,1777399839872,-742.58995939,0.00018591,2]
[421305810,1777399839880,-810.85,0.00018599,2]
[421305811,1777399839890,-810.85,0.00018599,2]
[421305812,1777399839899,-773374.54096373,0.000186,30]
[421305813,1777399839908,-151.0,0.000186,2]
[421305814,1777399839917,-151.0,0.000186,2]
[421305815,1777399839926,-151.0,0.000186,2]
[421305816,1777399839936,-151.0,0.000186,2]
[421305817,1777399839945,-151.0,0.000186,2]
[421305818,1777399839954,-151.0,0.000186,2]
[421305819,1777399839963,-151.0,0.000186,2]
[421305820,1777399839972,-455.9805711,0.00018622,2]
[421305821,1777399839981,-151.0,0.0001863,2]
[421305822,1777399839990,-5016.0,0.0001863,14]
[421305823,1777399840000,-933.63809712,0.000187,2]
[421305824,1777399840009,-261.17216892,0.000187,2]
[421305825,1777399840018,-500.0,0.00018773,2]
[421305826,1777399840027,-500.0,0.00018773,2]
[421305827,1777399840036,-500.0,0.00018773,2]
[421305828,1777399840046,-500.0,0.00018773,2]
[421305829,1777399840055,-170.0,0.00018794,2]
[421305830,1777399840065,-640.26,0.000188,2]
[421305831,1777399840074,-152639.06559941,0.000188,2]
[421305832,1777399840083,-11453.362172,0.000188,2]
[421305833,1777399840096,-4869.65549784,0.000188,2]
[421305834,1777399840107,-13596.80730029,0.000188,2]
[421305835,1777399840116,-151.0,0.000188,2]
[421305836,1777399840125,-151.0,0.000188,2]
[421305837,1777399840134,-151.0,0.000188,2]
[421305838,1777399840143,-151.0,0.000188,2]
[421305839,1777399840153,-151.0,0.000188,2]
[421305840,1777399840162,-151.0,0.000188,2]
[421305841,1777399840171,-151.0,0.000188,2]
[421305842,1777399840180,-151.0,0.000188,2]
[421305843,1777399840190,-151.0,0.000188,2]
[421305844,1777399840199,-151.0,0.000188,2]
[421305845,1777399840208,-151.228285,0.000188,2]
[421305847,1777399840217,-312.354736,0.000188,2]
[421305848,1777399840227,-312.354736,0.000188,2]
[421305849,1777399840236,-312.354736,0.000188,2]
[421305850,1777399840246,-312.354736,0.000188,2]
[421305851,1777399840255,-165.684283,0.000188,2]
[421305852,1777399840264,-165.684283,0.000188,2]
[421305853,1777399840274,-165.684283,0.000188,2]
[421305854,1777399840283,-165.684283,0.000188,2]
[421305855,1777399840293,-173.69101,0.000188,2]
[421305856,1777399840302,-151.0,0.000188,2]
[421305857,1777399840311,-151.0,0.000188,2]
[421305858,1777399840321,-151.0,0.000188,2]
[421305859,1777399840330,-151.0,0.000188,2]
[421305860,1777399840339,-151.0,0.000188,2]
[421305861,1777399840349,-151.0,0.000188,2]
[421305862,1777399840358,-151.0,0.000188,2]
[421305863,1777399840367,-682.45475174,0.0001881,30]
[421305864,1777399840377,-214.0,0.0001887,2]
[421305865,1777399840386,-2790.9,0.000189,2]
[421305866,1777399840396,-4091.40417451,0.000189,2]
[421305867,1777399840405,-158.99486491,0.000189,2]
[421305868,1777399840414,-158.9948649,0.000189,2]
[421305869,1777399840423,-158.9948649,0.000189,2]
[421305870,1777399840432,-158.9948649,0.000189,2]
[421305871,1777399840442,-151.0,0.00018904,5]
[421305872,1777399840451,-2736.66850055,0.00018958,7]
[421305873,1777399840460,-11963.11082883,0.00018963,3]
[421305874,1777399840475,-810.85,0.00018599,2]
[421305875,1777399840485,-764.56,0.00018963,3]
[421305878,1777399840793,-810.85,0.00018599,2]
[421305879,1777399840804,-810.85,0.00018599,2]
[421305880,1777399840814,-810.85,0.00018599,2]
[421305881,1777399840824,-810.85,0.00018599,2]
[421305882,1777399840833,-810.85,0.00018599,2]
[421305883,1777399840842,-810.87127409,0.00018599,2]
[421305884,1777399840852,-1625.51755511,0.00018963,3]
[421305885,1777399840867,-3491.35961657,0.00018963,3]
[421305933,1777399843650,-624.93596267,0.00018208,2]
[421305934,1777399843659,-375.60479733,0.000185,2]
[421305966,1777399847427,-624.39520267,0.000185,2]
[421305967,1777399847437,-84.65832324,0.00018963,3]
[421305968,1777399847452,-15002.16637865,0.00018963,3]
[421307143,1777401032499,-5000.0,7.816e-05,2]
[421307144,1777401032508,-531.0,7.895e-05,2]
[421307145,1777401032517,-454.49203753,8.056e-05,2]
[421307146,1777401032526,-788.0,8.219e-05,2]
[421307147,1777401032535,-300.0,8.299e-05,2]
[421307149,1777401032544,-300.0,8.299e-05,2]
[421307150,1777401032553,-300.0,8.299e-05,2]
[421307151,1777401032562,-300.0,8.299e-05,2]
[421307152,1777401032571,-300.0,8.299e-05,2]
[421307153,1777401032580,-300.0,8.299e-05,2]
[421307154,1777401032589,-300.0,8.299e-05,2]
[421307156,1777401032598,-300.0,8.299e-05,2]
[421307163,1777401032858,-300.0,8.299e-05,2]
[421307164,1777401032871,-300.0,8.299e-05,2]
[421307166,1777401032881,-300.0,8.299e-05,2]
[421307167,1777401032890,-300.0,8.299e-05,2]
[421307168,1777401032900,-300.0,8.299e-05,2]
[421307169,1777401032909,-300.0,8.299e-05,2]
[421307170,1777401032919,-300.0,8.299e-05,2]
[421307171,1777401032928,-600.0,8.464e-05,2]
[421307173,1777401032937,-713.86940329,9.31e-05,2]
[421307174,1777401032949,-6.13059671,9.31e-05,2]
[421307175,1777401032958,-536.30060428,0.00010056,2]
[421307176,1777401032967,-494.26448494,0.00010241,2]
[421307178,1777401032979,-369.73551506,0.00010241,2]
[421307179,1777401032989,-1000.0,0.00011266,2]
[421307180,1777401032999,-618.10917104,0.00012056,2]
[421307181,1777401033008,-1000.0,0.00012392,2]
[421307182,1777401033018,-244.0,0.00012392,2]
[421307184,1777401033027,-1000.0,0.00013631,2]
[421307185,1777401033036,-492.0,0.00013631,2]
[421307186,1777401033046,-1000.0,0.00013699,2]
[421307187,1777401033055,-699.91773779,0.00014056,2]
[421307188,1777401033064,-3338.75355698,0.00014831,2]
[421307190,1777401033074,-300.614182,0.000149,2]
[421307191,1777401033084,-621.5054878,0.000149,2]
[421307192,1777401033093,-942.39679359,0.000149,2]
[421307193,1777401033103,-1000.84327123,0.000149,2]
[421307194,1777401033112,-500.0,0.0001493,2]
[421307196,1777401033121,-355.45847384,0.0001493,2]
[421307197,1777401033130,-679.8685913,0.00014931,2]
[421307198,1777401033140,-180.18094169,0.00014931,2]
[421307199,1777401033149,-679.8685913,0.00014931,2]
[421307200,1777401033158,-679.8685913,0.00014931,2]
[421307201,1777401033167,-679.8685913,0.00014931,2]
[421307203,1777401033177,-679.8685913,0.00014931,2]
[421307204,1777401033186,-679.8685913,0.00014931,2]
[421307205,1777401033195,-679.8685913,0.00014931,2]
[421307206,1777401033205,-679.8685913,0.00014931,2]
[421307207,1777401033214,-679.8685913,0.00014931,2]
[421307209,1777401033224,-679.8685913,0.00014931,2]
[421307210,1777401033233,-679.8685913,0.00014931,2]
[421307211,1777401033242,-679.8685913,0.00014931,2]
[421307212,1777401033251,-679.8685913,0.00014931,2]
[421307213,1777401033261,-679.8685913,0.00014931,2]
[421307215,1777401033270,-679.8685913,0.00014931,2]
[421307216,1777401033279,-679.8685913,0.00014931,2]
[421307217,1777401033288,-679.8685913,0.00014931,2]
[421307218,1777401033297,-679.8685913,0.00014931,2]
[421307219,1777401033306,-679.8685913,0.00014931,2]
[421307220,1777401033315,-679.8685913,0.00014931,2]
[421307222,1777401033324,-679.8685913,0.00014931,2]
[421307223,1777401033333,-713.86202088,0.00014931,2]
[421307224,1777401033342,-713.86202088,0.00014931,2]
[421307225,1777401033352,-713.86202088,0.00014931,2]
[421307226,1777401033361,-713.86202088,0.00014931,2]
[421307228,1777401033371,-713.86202088,0.00014931,2]
[421307229,1777401033380,-713.86202088,0.00014931,2]
[421307230,1777401033389,-713.86202088,0.00014931,2]
[421307231,1777401033398,-713.86202088,0.00014931,2]
[421307232,1777401033407,-236.07682014,0.00014931,2]
[421307233,1777401033416,-152665.25102299,0.00014932,2]
[421307235,1777401033428,-1676.81618605,0.00014932,2]
[421307357,1777401038740,-836.73170697,0.00014932,2]
[421307361,1777401038911,-4991.96987597,0.00014932,2]
[421307362,1777401038922,-31954.42952058,0.00014932,2]
[421307363,1777401038933,-10209.98579081,0.00014932,2]
[421307364,1777401038945,-47538.35513514,0.00014932,2]